[Event "1000GM 0003 GM Norm 2022"]
[Site "Saint Louis"]
[Date "2022.09.24"]
[Round "7.1"]
[White "Williams, Justus"]
[Black "Raja Harshit"]
[Result "1-0"]
[ECO "B90"]
[WhiteElo "2392"]
[BlackElo "2459"]
[Annotator "TA"]
[PlyCount "73"]
[EventDate "2022.09.21"]
[EventType "tourn"]
[EventCountry "USA"]
[SourceTitle "playchess.com"]
[Source "ChessBase"]
[SourceQuality "1"]
[TimeControl "5400+30"]

{[%evp 17,73,12,14,6,4,7,3,3,14,2,13,10,65,64,67,62,87,22,137,143,139,148,131,94,191,105,168,152,182,185,374,376,529,554,616,601,591,539,535,543,605,590,675,659,644,642,872,833,817,801,977,569,1200,1195,1181,1156,1675,1320]} 1. e4 {[%emt 0:00:32]} c5 {[%emt 0:00:18]} 2. Nf3 {[%emt 0:00:11]} d6 {[%emt 0:00:06]} 3. d4 {[%emt 0:00:17]} cxd4 {[%emt 0:00:06]} 4. Nxd4 {[%emt 0:00:04]} Nf6 {[%emt 0:00:07]} 5. Nc3 {[%emt 0:00:06]} a6 {[%emt 0:00:04]} 6. Be3 {[%emt 0:00:31]} Ng4 {[%emt 0:00:34]} 7. Bc1 {[%emt 0:01:19]} Nf6 {[%emt 0:00:06]} 8. Be3 {[%emt 0:00:05]} e5 {[%emt 0:00:13]} 9. Nf3 {[%emt 0:00:13]} Be7 {[%emt 0:00:05]} 10. Nd2 {[%emt 0:00:56] B90: Sicilian Najdorf: Unusual White 6th moves, 6 Be3 Ng4 and 6 Be3 e5.} b5 {[%emt 0:00:29] Inhibits Nc4.} 11. a4 {[%emt 0:00:17]} b4 {[%emt 0:00:03]} 12. Nd5 {[%emt 0:00:07] The position is equal.} Nxd5 {[%emt 0:00:03]} 13. exd5 {[%emt 0:00:03]} O-O {[%emt 0:03:30] 13...f5 injects fresh life into this line.} 14. Nc4 {[%emt 0:01:21] [#]} f5 $146 {[%emt 0:03:44]} (14... Nd7 $11) ({Predecessor (2):} 14... Nd7 15. a5 f5 16. f3 Qe8 17. Be2 Rb8 18. O-O f4 19. Ba7 Ra8 20. Bf2 Qh5 21. Kh1 Rf6 22. g4 fxg3 23. Bxg3 {½-½ (37) Erigaisi,A (2675)-Can,E (2578) Fagernes 2022}) 15. Bb6 $36 {[%emt 0:03:53][%mdl 2048] White is pushing. White is more active.} Qe8 {[%emt 0:07:45]} 16. Bc7 {[%emt 0:03:43]} Qg6 {[%emt 0:10:06] [#]} 17. Nb6 {[%emt 0:19:32]} (17. Nxe5 $1 $16 Qf6 (17... Qe8 18. Be2) 18. Nc4) 17... Bb7 {[%emt 0:16:22]} (17... Ra7 $1 $11 {remains equal.} 18. Bxb8 Rb7) 18. Nxa8 $16 {[%emt 0:02:24]} Bxa8 {[%emt 0:00:04] [#]} 19. Ba5 $1 {[%emt 0:04:10]} f4 {[%emt 0:03:08]} 20. Be2 {[%emt 0:04:13]} Nd7 {[%emt 0:02:53]} (20... Qxg2 $16 {was called for.} 21. Bf3 Qh3) 21. Qd3 {[%emt 0:06:06]} (21. Bxb4 Rb8 $16) (21. O-O $18) 21... e4 {[%emt 0:16:17]} (21... Qxg2 $16 22. Bf3 Qh3) 22. Qh3 $18 {[%emt 0:00:32]} (22. Qxa6 Qxg2 23. O-O-O Qxf2 $11) 22... Ne5 {[%emt 0:02:20] Hoping for ...f3.} 23. O-O-O {[%emt 0:04:26]} (23. Bxb4 f3 24. gxf3 exf3 $15) (23. Bxa6 $2 Bxd5 24. O-O-O (24. Bxb4 $2 e3 $19) 24... Be6 $17) 23... Rf5 $2 {[%emt 0:03:01]} (23... Bb7) 24. Bxa6 {[%emt 0:01:22][%cal Be2a6,Ba6c8,Bc8e6][%mdl 32]} Ng4 {[%emt 0:03:09]} (24... Rf8 {is a better defense.} 25. Bxb4 Ng4) 25. Bc8 {[%emt 0:01:05] White is clearly winning.} Rg5 {[%emt 0:00:11]} 26. Be6+ {[%emt 0:01:00]} Kf8 {[%emt 0:00:27]} 27. Bb6 {[%emt 0:07:05][%cal Ba5b6,Bb6e3,Be3d4][%mdl 32]} Nf6 {[%emt 0:02:36]} 28. Qb3 {[%emt 0:01:11]} Rxg2 {[%emt 0:00:29]} 29. Qxb4 {[%emt 0:01:52]} e3 {[%emt 0:01:07]} 30. Qxf4 {[%emt 0:00:56]} ({Less strong is} 30. Qa5 Bb7 $18) 30... Rxf2 {[%emt 0:04:09][%csl Gf2][%cal Rg6c2]} 31. Qc4 {[%emt 0:00:16]} Bb7 {[%emt 0:00:29]} 32. Bxe3 {[%emt 0:01:05]} Ba6 {[%emt 0:00:06]} 33. Qb3 {[%emt 0:00:44]} Rf3 {[%emt 0:00:18]} 34. Qb8+ {[%emt 0:00:38]} Ne8 {[%emt 0:00:04]} 35. Rhg1 {[%emt 0:00:23]} Qe4 {[%emt 0:00:48]} 36. Bd4 {[%emt 0:00:51][%csl Gg1][%cal Rd4g7]} Bg5+ {[%emt 0:00:25]} 37. Kb1 {[%emt 0:00:02] Weighted Error Value: White=0.15 (very precise) /Black=0.48} 1-0

[Event "1000GM 0003 GM Norm 2022"]
[Site "Saint Louis"]
[Date "2022.09.24"]
[Round "7.2"]
[White "Stearman, Josiah"]
[Black "Mardov, Dimitar"]
[Result "0-1"]
[ECO "A27"]
[WhiteElo "2387"]
[BlackElo "2414"]
[Annotator "TA"]
[PlyCount "92"]
[EventDate "2022.09.21"]
[EventType "tourn"]
[EventCountry "USA"]
[SourceTitle "playchess.com"]
[Source "ChessBase"]
[SourceQuality "1"]
[TimeControl "5400+30"]

{[%evp 9,92,36,29,18,20,-10,36,27,59,63,61,51,42,39,27,33,35,12,21,16,20,10,16,-34,-25,-43,-27,-24,0,-32,-33,-30,-30,-32,-37,-35,-48,-52,-58,-53,-36,-58,-6,-7,0,0,13,0,0,0,0,0,0,0,0,0,0,-21,-11,-424,-400,-434,-422,-409,-420,-395,-411,-383,-372,-881,-441,-421,-421,-406,-397,-377,-268,-205,-205,-980,-255,-6898,-6187,-29997,-453]} 1. c4 {[%emt 0:00:08]} e5 {[%emt 0:00:14]} 2. Nc3 {[%emt 0:00:05]} Nc6 {[%emt 0:00:27]} 3. Nf3 {[%emt 0:00:03]} Bb4 {[%emt 0:02:30]} 4. Nd5 {[%emt 0:00:09]} Be7 {[%emt 0:02:13]} 5. d4 {[%emt 0:00:07]} d6 {[%emt 0:01:13]} 6. e4 {[%emt 0:00:04] A27: English Opening: Three Knights Variation.} Bg4 {[%emt 0:06:55] [#]} 7. Qa4 $146 {[%emt 0:00:43]} ({Predecessor:} 7. dxe5 dxe5 8. Be3 Bb4+ 9. Nxb4 Qxd1+ 10. Rxd1 Nxb4 11. Rd2 c6 12. Nxe5 Bh5 13. a3 {1-0 (23) Sandocal,U (1652)-Lipsits,S (1505) LSS email 2014}) 7... Bd7 {[%emt 0:07:09]} (7... Bxf3 $11 8. gxf3 exd4) 8. dxe5 $14 {[%emt 0:00:13] White is slightly better.} Nxe5 {[%emt 0:02:56]} 9. Qb3 {[%emt 0:00:06]} Nxf3+ {[%emt 0:07:27]} 10. gxf3 {[%emt 0:00:44]} Nf6 {[%emt 0:02:01]} 11. Qxb7 {[%emt 0:07:50]} Nxd5 {[%emt 0:00:33]} 12. Qxd5 {[%emt 0:00:15]} Bf6 {[%emt 0:02:31]} 13. Rb1 {[%emt 0:03:17]} O-O {[%emt 0:02:03]} 14. b3 {[%emt 0:02:25]} Be6 {[%emt 0:01:04]} 15. Qd2 {[%emt 0:00:42]} c6 {[%emt 0:05:50][%cal Bc7c6,Bc6d5][%mdl 32]} 16. Ba3 {[%emt 0:02:31]} (16. Be2 $11) 16... Be5 $15 {[%emt 0:02:31]} 17. Bb2 {[%emt 0:14:04]} Qf6 {[%emt 0:03:28]} 18. Be2 {[%emt 0:13:28]} d5 {[%emt 0:11:12]} 19. exd5 {[%emt 0:01:08]} cxd5 {[%emt 0:01:54]} 20. Bxe5 {[%emt 0:00:06]} Qxe5 {[%emt 0:00:08]} 21. O-O $1 {[%emt 0:00:17]} Bh3 {[%emt 0:10:41] [#] Hoping for ...Qf6.} 22. Rfe1 {[%emt 0:00:31]} Qf6 {[%emt 0:00:54] ( -> ...Qg6+)} 23. Kh1 {[%emt 0:01:26]} dxc4 {[%emt 0:00:45]} ({Much worse is} 23... Qg6 24. Bf1 Bxf1 25. Rxf1 $11) 24. bxc4 {[%emt 0:00:04]} Rad8 {[%emt 0:01:08]} 25. Qb2 {[%emt 0:01:11]} Qh4 {[%emt 0:03:20]} (25... Rd4 $1 $15) 26. Qe5 $11 {[%emt 0:02:03]} ({Of course not} 26. Rg1 g6 27. Bf1 Bxf1 28. Rgxf1 Rd4 $15) 26... Rfe8 $40 {[%emt 0:02:16][%mdl 128] Black attacks.} 27. Qg3 {[%emt 0:00:13]} Qh6 {[%emt 0:00:28]} 28. Bd3 {[%emt 0:04:17]} Be6 {[%emt 0:01:55]} 29. Re3 {[%emt 0:02:32]} Qf6 {[%emt 0:00:55]} 30. c5 {[%emt 0:00:38] Black must now prevent c6.} h5 {[%emt 0:03:46]} 31. h4 {[%emt 0:05:03]} Bd5 {[%emt 0:04:30] And now ...Rxe3 would win.} 32. Be4 {[%emt 0:01:58]} Bxe4 {[%emt 0:01:06]} 33. fxe4 {[%emt 0:01:40]} Qc6 {[%emt 0:01:39]} 34. Qg5 $2 {[%emt 0:04:16][%mdl 8192] [#] White does not recover from this.} (34. Qf4 $11 {and White is okay.}) 34... Rxe4 $1 $19 {[%emt 0:00:29]} 35. Rxe4 {[%emt 0:00:27]} (35. Qg2 Rxh4+) 35... Qxe4+ {[%emt 0:00:12][%mdl 4096] Endgame KQR-KQR} 36. Kh2 {[%emt 0:00:03]} f6 {[%emt 0:01:02]} 37. Qc1 {[%emt 0:00:04]} Qxh4+ {[%emt 0:00:15]} 38. Kg1 {[%emt 0:00:01]} Qg4+ {[%emt 0:00:50]} 39. Kf1 $2 {[%emt 0:00:54]} (39. Kh2 Rd3 40. Qf1 Qf4+ 41. Kg1) 39... Qh3+ {[%emt 0:00:31]} (39... Re8 40. Qc2 $17) 40. Kg1 {[%emt 0:00:02]} Rd4 {[%emt 0:01:14][%cal Rd4g4] Prevents Qf4.} 41. Rb8+ {[%emt 0:00:05]} Kh7 {[%emt 0:00:31][%cal Rd4g4]} 42. Qc2+ {[%emt 0:00:03]} f5 {[%emt 0:00:14][%cal Rd4g4]} 43. Rb3 {[%emt 0:00:02]} Qg4+ {[%emt 0:01:37]} 44. Kh2 $2 {[%emt 0:00:20]} (44. Rg3 Rc4 45. Qd3 Rc1+ 46. Kg2) 44... Qf4+ $2 {[%emt 0:00:23]} ({Inferior is} 44... Rc4 45. Rc3 Re4 46. Re3 $17) (44... Rd1 45. Rg3 Qh4+ 46. Rh3 Qf4+ 47. Kg2 Rd2 48. Qxd2 Qxd2 49. Rxh5+ Kg6) 45. Kh3 $2 {[%emt 0:01:24]} (45. Kg2) 45... Rd2 {[%emt 0:00:30]} 46. Qc3 {[%emt 0:00:25]} Qg4+ {[%emt 0:00:05] Weighted Error Value: White=0.64/Black=0.32} 0-1

[Event "1000GM 0003 GM Norm 2022"]
[Site "Saint Louis"]
[Date "2022.09.24"]
[Round "7.3"]
[White "Tugstumur, Yesuntumur"]
[Black "Kretchetov, Alexandre"]
[Result "1-0"]
[ECO "A48"]
[WhiteElo "2375"]
[BlackElo "2144"]
[Annotator "TA"]
[PlyCount "107"]
[EventDate "2022.09.21"]
[EventType "tourn"]
[EventCountry "USA"]
[SourceTitle "playchess.com"]
[Source "ChessBase"]
[SourceQuality "1"]
[TimeControl "5400+30"]

{[%evp 16,107,9,-7,0,-6,-2,-8,-10,-39,-12,-18,-20,-14,-16,-54,-51,-70,-83,-77,-68,-82,-65,-92,-85,-85,-85,-89,-79,-106,-95,-91,-93,-110,-120,-123,-122,-111,-125,-143,-135,-149,-148,-145,-79,-77,-34,-50,-36,-52,-56,-38,-39,-70,-70,-61,-68,-61,-61,-94,-72,-86,-8,0,0,0,33,33,302,289,294,287,269,266,525,510,1170,1146,1113,1021,935,900,2506,2280,6646,6943,5801,5781,5697,8630,2526,3002,5493,1583]} 1. Nf3 {[%emt 0:00:08]} Nf6 {[%emt 0:00:14]} 2. b3 {[%emt 0:03:56]} g6 {[%emt 0:01:09]} 3. Bb2 {[%emt 0:00:27]} Bg7 {[%emt 0:00:07]} 4. e3 {[%emt 0:00:45]} O-O {[%emt 0:00:08]} 5. Be2 {[%emt 0:00:14]} b6 {[%emt 0:02:31]} 6. O-O {[%emt 0:01:40]} Bb7 {[%emt 0:00:04]} 7. d4 {[%emt 0:00:48]} d6 {[%emt 0:02:22]} 8. c4 {[%emt 0:01:09]} Nbd7 {[%emt 0:00:37]} 9. Nbd2 {[%emt 0:01:13]} e6 {[%emt 0:03:40][%cal Be7e6,Be6e5,Be5e4][%mdl 32] A48: 1 d4 Nf6 2 Nf3 g6: Torre, London and Colle Systems.} 10. Qc2 {[%emt 0:00:55]} Qe7 {[%emt 0:00:16] has lost popularity (10...c5).} 11. b4 {[%emt 0:06:14]} c5 {[%emt 0:01:38] [#] The position is equal.} 12. Bc3 $146 {[%emt 0:01:15]} ({Predecessor:} 12. dxc5 dxc5 13. b5 e5 14. e4 Rfd8 15. Rfe1 Ne8 16. Nb1 Nc7 17. Nc3 Ne6 18. Nd5 {½-½ (69) Chen,Z (1793)-Gu,J (2085) Liaocheng 2021}) 12... Rfc8 {[%emt 0:04:45]} 13. dxc5 {[%emt 0:00:59]} dxc5 {[%emt 0:05:09]} 14. b5 {[%emt 0:00:29]} e5 {[%emt 0:03:13]} 15. Qb2 {[%emt 0:06:08][%cal Rf3e5]} Ne8 {[%emt 0:02:49]} 16. Rfd1 {[%emt 0:08:39]} e4 {[%emt 0:11:20]} 17. Ne1 {[%emt 0:00:04]} Ne5 {[%emt 0:01:14]} 18. Qc2 {[%emt 0:01:31]} f5 {[%emt 0:00:19]} 19. Rac1 {[%emt 0:02:20]} a5 {[%emt 0:03:20]} 20. Nb1 {[%emt 0:00:35]} Rd8 {[%emt 0:00:24]} 21. Bb2 {[%emt 0:02:59]} Nd6 {[%emt 0:02:01]} 22. Rd2 {[%emt 0:05:38]} g5 {[%emt 0:03:07]} 23. Bxe5 {[%emt 0:01:54]} Qxe5 {[%emt 0:01:14]} 24. Qd1 {[%emt 0:03:17]} Nf7 {[%emt 0:06:10]} 25. Bh5 {[%emt 0:00:50] [#] Strongly threatening Bxf7+.} Qe7 {[%emt 0:03:59]} 26. Bxf7+ {[%emt 0:03:48]} Kxf7 {[%emt 0:00:07]} 27. Qh5+ {[%emt 0:08:52]} Kg8 {[%emt 0:01:38]} 28. h4 {[%emt 0:02:13]} Rxd2 {[%emt 0:02:39]} 29. Nxd2 {[%emt 0:00:03]} h6 {[%emt 0:09:40]} (29... gxh4 $142 30. Qxf5 Rf8) 30. hxg5 $17 {[%emt 0:02:10]} Qxg5 {[%emt 0:00:59]} 31. Qh2 {[%emt 0:08:06] Black must now prevent Qc7.} Qe7 {[%emt 0:01:21] Against Qc7} (31... Re8 {is more complex.} 32. Qd6 Qd8 33. Qg6 Bc8) 32. Nf1 {[%emt 0:02:23]} Rd8 {[%emt 0:00:36] Against Rd1} 33. Qh5 {[%emt 0:01:28]} Qg5 {[%emt 0:03:33]} 34. Qe2 {[%emt 0:01:43]} Bc8 {[%emt 0:01:21]} 35. g3 {[%emt 0:02:24]} Qg4 {[%emt 0:01:20]} 36. Qxg4 {[%emt 0:01:53]} fxg4 {[%emt 0:00:11]} 37. Ng2 {[%emt 0:00:28]} Be6 {[%emt 0:01:44]} 38. Nf4 {[%emt 0:00:28] [#]} Bf7 {[%emt 0:00:04]} (38... Kf7 $1 $17) 39. Rc2 $11 {[%emt 0:01:06]} Be5 {[%emt 0:04:55]} 40. Rd2 {[%emt 0:01:57]} Rxd2 {[%emt 0:02:56]} 41. Nxd2 {[%emt 0:00:04] Nd5 is the strong threat.} Bxf4 {[%emt 0:00:38][%mdl 8192]} ({Black should play} 41... Bc7 $14) 42. exf4 {[%emt 0:00:05][%mdl 4096] Endgame KB-KN} Kg7 {[%emt 0:00:32]} 43. Kf1 Kg6 {[%emt 0:00:00]} 44. Ke2 {[%emt 0:00:09]} h5 $2 {[%emt 0:00:26]} (44... Kf5 45. Ke3 Ke6) 45. Ke3 $18 {[%emt 0:00:55] White is clearly winning.} Kf5 {[%emt 0:01:13]} (45... Kf6 $142 46. Kxe4 (46. Nxe4+ Ke7 $16) 46... a4) 46. Nxe4 {[%emt 0:00:13]} Bg8 {[%emt 0:00:15]} 47. Nd6+ {[%emt 0:00:43]} Kf6 {[%emt 0:00:13]} 48. Ke4 {[%emt 0:01:11]} Be6 {[%emt 0:01:31]} 49. f5 {[%emt 0:01:51]} Bg8 {[%emt 0:00:38]} 50. Kf4 Bh7 {[%emt 0:00:09]} 51. Ne4+ {[%emt 0:00:27]} Ke7 {[%emt 0:00:10]} 52. Ke5 {[%emt 0:00:14] Nf6 would kill now.} Bg8 {[%emt 0:00:06]} 53. Nd6 {[%emt 0:01:04] And now Nc8+ would win.} a4 {[%emt 0:00:09]} 54. Nc8+ {[%emt 0:00:29] What a bad dream for Black.  Weighted Error Value: White=0.09 (flawless) /Black=0.32} (54. f6+ $142 Kd8 55. f7 Bxf7 56. Nxf7+ Ke7 57. Ng5) 1-0

[Event "1000GM 0003 GM Norm 2022"]
[Site "Saint Louis"]
[Date "2022.09.24"]
[Round "7.4"]
[White "Gedajlovic, Max"]
[Black "Chandra, Akshat"]
[Result "1/2-1/2"]
[ECO "B30"]
[WhiteElo "2343"]
[BlackElo "2471"]
[Annotator "TA"]
[PlyCount "62"]
[EventDate "2022.09.21"]
[EventType "tourn"]
[EventCountry "USA"]
[SourceTitle "playchess.com"]
[Source "ChessBase"]
[SourceQuality "1"]
[TimeControl "5400+30"]

{[%evp 10,62,37,21,33,29,31,28,39,19,21,20,21,22,35,33,30,29,45,32,36,37,42,0,0,0,0,0,0,0,-18,-32,-35,-27,-31,-39,0,-2,49,27,31,0,0,0,0,0,0,0,0,-14,0,0,0,0,0]} 1. e4 {[%emt 0:00:04]} c5 {[%emt 0:06:32]} 2. Nf3 {[%emt 0:00:10]} Nc6 {[%emt 0:02:07]} 3. Bb5 {[%emt 0:00:08]} e6 {[%emt 0:05:39]} 4. O-O {[%emt 0:00:24]} Nge7 {[%emt 0:00:05]} 5. d4 {[%emt 0:00:13]} cxd4 {[%emt 0:00:40]} 6. Nxd4 {[%emt 0:00:04]} Ng6 {[%emt 0:03:21] B30: Sicilian: 2...Nc6 3 Bb5, lines without ...g6.} 7. Be3 {[%emt 0:02:26]} Be7 {[%emt 0:00:27]} 8. Be2 {[%emt 0:02:13]} O-O {[%emt 0:01:17] White has an edge.} 9. c4 {[%emt 0:00:39]} Nxd4 {[%emt 0:04:12] 9...b6 is the fancy move.} 10. Qxd4 {[%emt 0:03:16]} b6 {[%emt 0:00:19]} 11. Nc3 {[%emt 0:05:48]} Bb7 {[%emt 0:01:22]} 12. Rad1 {[%emt 0:01:12]} Bc6 {[%emt 0:02:02]} 13. Qd2 {[%emt 0:05:22] [#]} Qb8 $146 {[%emt 0:06:26]} ({Predecessor:} 13... Bb4 14. f3 Qf6 15. Rc1 Bc5 16. Rfd1 Qe5 17. g3 Rad8 18. f4 Qb8 19. Bxc5 bxc5 {1-0 (45) Nihal,S (2652)-Ivic,V (2610) Belgrade 2022}) 14. a3 {[%emt 0:05:38]} f5 {[%emt 0:10:19]} 15. exf5 {[%emt 0:05:44]} Nh4 {[%emt 0:01:23]} 16. f3 {[%emt 0:04:25]} (16. Bf4 $14 Qe8 17. f3) 16... Nxf5 $11 {[%emt 0:02:19]} 17. Bf2 {[%emt 0:00:14]} Bd6 {[%emt 0:04:48]} 18. g3 {[%emt 0:02:41]} Bxg3 {[%emt 0:10:06]} 19. hxg3 {[%emt 0:00:17]} Nxg3 {[%emt 0:00:07]} 20. Qd6 {[%emt 0:05:06]} Qxd6 {[%emt 0:16:43]} 21. Rxd6 {[%emt 0:00:10]} Nxf1 {[%emt 0:00:02]} 22. Kxf1 {[%emt 0:00:54]} Rf5 {[%emt 0:00:29]} 23. Ne4 {[%emt 0:14:59]} Bxe4 {[%emt 0:05:49]} (23... Raf8 $11 24. Nd2 g5) 24. fxe4 $14 {[%emt 0:00:30]} Rf4 {[#] Hoping for ...Raf8.} 25. Kg2 {[%emt 0:01:23]} (25. Rxd7 $2 Raf8 26. Ke1 Rxf2 $19) (25. Ke1 $5 {[%cal Rd6d7]}) 25... Raf8 {[%emt 0:00:07] The position is equal.} 26. Bg3 {[%emt 0:01:23]} Rxe4 {[%emt 0:00:30]} 27. Bd3 {[%emt 0:00:51]} Re3 {[%emt 0:03:20] White must now prevent ...Rff3.} 28. Bf2 $1 {[%emt 0:05:37] This bishop pair is nice.} (28. Rxd7 $2 Rff3 29. Rd8+ Kf7 $19) 28... Ref3 {[%emt 0:01:15]} 29. Bg3 {[%emt 0:00:43]} Re3 {[%emt 0:05:09] [#] aiming for ...Rff3.} 30. Bf2 $1 {[%emt 0:00:14]} ({Don't blunder} 30. Rxd7 $2 Rff3 31. Bxh7+ (31. Rd8+ $2 Kf7 $19) 31... Kxh7 $19) 30... Ref3 {[%emt 0:00:11]} 31. Bg3 {[%emt 0:00:06]} Re3 {[%emt 0:01:30] Weighted Error Value: White=0.07 (flawless) /Black=0.07 (flawless)} 1/2-1/2

[Event "1000GM 0003 GM Norm 2022"]
[Site "Saint Louis"]
[Date "2022.09.24"]
[Round "7.5"]
[White "Antipov, Mikhail Al."]
[Black "Kaliksteyn, Alexander"]
[Result "1-0"]
[ECO "B79"]
[WhiteElo "2603"]
[BlackElo "2393"]
[Annotator "TA"]
[PlyCount "67"]
[EventDate "2022.09.21"]
[EventType "tourn"]
[EventCountry "USA"]
[SourceTitle "playchess.com"]
[Source "ChessBase"]
[SourceQuality "1"]
[TimeControl "5400+30"]

{[%evp 33,67,92,105,108,94,101,167,161,156,157,172,167,170,169,170,168,260,264,267,263,253,245,567,579,593,557,2407,2479,2482,2248,29994,29995,29996,29997,29997,29998]} 1. e4 {[%emt 0:00:02]} c5 {[%emt 0:00:13]} 2. Nf3 {[%emt 0:00:04]} d6 {[%emt 0:00:11]} 3. d4 {[%emt 0:00:03]} cxd4 {[%emt 0:00:05]} 4. Nxd4 {[%emt 0:00:03]} Nf6 {[%emt 0:00:07]} 5. Nc3 {[%emt 0:00:03]} g6 {[%emt 0:00:33]} 6. Be3 {[%emt 0:00:04]} Bg7 {[%emt 0:00:06]} 7. f3 {[%emt 0:00:02]} Nc6 {[%emt 0:00:08]} 8. Qd2 {[%emt 0:00:20]} O-O {[%emt 0:00:07]} 9. Bc4 {[%emt 0:00:03]} Bd7 {[%emt 0:01:19]} 10. O-O-O {[%emt 0:00:06]} Qa5 {[%emt 0:00:42]} 11. Kb1 {[%emt 0:01:24]} Rfc8 {[%emt 0:01:18]} 12. Bb3 {[%emt 0:00:08]} Ne5 {[%emt 0:00:10]} 13. h4 {[%emt 0:00:20]} Nc4 {[%emt 0:00:34]} 14. Bxc4 {[%emt 0:00:05]} Rxc4 {[%emt 0:00:04]} 15. Nb3 {[%emt 0:03:19]} Qc7 {[%emt 0:00:50]} 16. Bd4 {[%emt 0:04:27]} Be6 {[%emt 0:00:59]} 17. h5 {[%emt 0:04:01]} a5 {[%emt 0:04:35]} 18. hxg6 {[%emt 0:12:32] B79: Sicilian Dragon: Yugoslav Attack, 9 Bc4 Bd7 10 0-0-0 Qa5.} hxg6 {[%emt 0:00:11]} 19. Be3 $5 {[%emt 0:05:21][%mdl 4] An interesting side line.} Rc8 {[%emt 0:12:04]} (19... a4 $16) 20. Nb5 $18 {[%emt 0:10:11][%csl LRa5,LRc7] White is clearly better.} Qd7 {[%emt 0:04:36] [#]} 21. N3d4 $146 {[%emt 0:00:35] White is more active.} ({Predecessor:} 21. Na3 Ra4 22. Bh6 Bh8 23. Bg5 Bg7 24. Bh6 Bh8 25. Bg5 Bg7 {½-½ (25) Groszpeter,A (2524)-Mutschnik,I (2410) Deizisau 2005}) 21... Rb4 {[%emt 0:25:18]} 22. Nc3 {[%emt 0:01:48]} Rbc4 {[%emt 0:05:48][%cal Oc4c3] [#]} 23. Nce2 {[%emt 0:01:46]} b5 {[%emt 0:10:10]} 24. b3 {[%emt 0:07:28]} (24. Qxa5 $6 Ra4 25. Qxb5 Bxa2+ 26. Kc1 Bc4 27. Qxd7 Nxd7 $11) 24... R4c7 {[%emt 0:02:52]} (24... R4c5 {might work better.} 25. Rc1 (25. Qxa5 Qc7 $18) (25. Nxe6 Rxc2 26. Qd3 fxe6 $11) 25... b4 26. Nxe6 Qxe6) 25. Bh6 {[%emt 0:02:38]} ({But not} 25. Qxa5 $6 Nh5 26. Qd2 (26. c3 Rb7 $16) 26... b4 $18) 25... Bh8 {[%emt 0:00:29]} 26. g4 {[%emt 0:01:01]} ({Don't take} 26. Qxa5 $6 Ra7 27. Qxb5 Rb7 28. Qxd7 Bxd7 $18) 26... Bxg4 {[%emt 0:08:45]} 27. fxg4 {[%emt 0:01:18] Strongly threatening Qe3.} Nxe4 $2 {[%emt 0:04:55]} (27... Rc5 {is tougher.} 28. e5 (28. Qxa5 Qxg4 29. Bc1 Qxe4 $16) 28... Rxe5) 28. Qf4 {[%emt 0:01:34]} Nc3+ {[%emt 0:01:06]} 29. Nxc3 {[%emt 0:00:06][%cal Oh6f8] Hoping for Bf8!} Rxc3 {[%emt 0:00:06]} 30. Rdf1 {[%emt 0:02:50][%csl Gf1][%cal Rf4f7]} e5 {[%emt 0:03:06]} 31. Qh2 {[%emt 0:00:06][%cal Oh6g5] White wants to mate with Bg5!} exd4 {[%emt 0:00:29]} 32. Bg5 {[%emt 0:00:08][%csl Gh1][%cal Rh2h8] White mates.} Bg7 {[%emt 0:01:14]} 33. Qh7+ {[%emt 0:00:04]} Kf8 {[%emt 0:00:14] [#]} 34. Qh8+ $3 {[%emt 0:00:08][%mdl 512] Black did not feel at home in the position after the opening.  Weighted Error Value: White=0.00 (flawless) /Black=0.72} 1-0